bitfinex/quotes_BTCUSD_20220303
["timestamp","ask_amount","ask_price","bid_price","bid_amount"]
[1646317985837,0.114118,43853.0,43842.0,0.002]
[1646317986039,0.24063323,43843.0,43842.0,0.002]
[1646317986441,0.353325,43843.0,43842.0,0.002]
[1646317986740,0.353325,43846.0,43832.0,0.18315572]
[1646317986941,0.353325,43846.0,43835.0,0.2138524]
[1646317987139,0.353325,43846.0,43832.0,0.48315572]
[1646317987340,0.00016836,43844.0,43832.0,0.48315572]
[1646317987540,0.28115322,43843.0,43832.0,0.48315572]
[1646317988142,0.28115322,43843.0,43827.0,0.004]
[1646317988143,0.353325,43842.0,43827.0,0.004]
[1646317988348,0.753074,43838.0,43827.0,0.004]
[1646317988544,0.135,43834.0,43819.0,0.0001827]
[1646317988800,0.353325,43830.0,43819.0,0.0001827]
[1646317988997,0.353325,43828.0,43819.0,0.0001827]
[1646317989203,0.135,43824.0,43819.0,0.0001827]
[1646317989398,0.399025,43823.0,43815.0,0.0011]
[1646317989597,0.0457,43822.0,43819.0,0.00018269]
[1646317989799,0.10046809,43820.0,43819.0,0.00018269]
[1646317989997,0.49949309,43820.0,43819.0,0.00018269]
[1646317990600,0.49949309,43820.0,43815.0,0.0011]
[1646317990799,0.0457,43820.0,43815.0,0.0011]
[1646317990999,0.0457,43820.0,43817.0,0.00018269]
[1646317991200,0.353325,43819.0,43817.0,0.00018269]
[1646317991997,0.353325,43819.0,43815.0,0.0011]
[1646317992643,0.0487,43820.0,43816.0,0.168806]
[1646317992836,0.38164878,43833.0,43817.0,0.3]
[1646317992837,0.0457,43827.0,43817.0,0.3]
[1646317993039,0.0457,43826.0,43816.0,0.168806]
[1646317993238,0.0457,43829.0,43817.0,0.15940602]
[1646317993440,0.003,43827.0,43815.0,0.0011]
[1646317993637,0.135,43823.0,43815.0,0.0011]
[1646317993837,0.003,43827.0,43815.0,0.0011]
[1646317993838,0.353429,43822.0,43815.0,0.0011]
[1646317994039,0.353429,43821.0,43815.0,0.0011]
[1646317994238,0.003,43827.0,43815.0,0.0011]
[1646317994537,0.003,43827.0,43816.0,0.0002061]
[1646317994538,0.353429,43826.0,43816.0,0.0002061]
[1646317994937,0.24949893,43820.0,43816.0,0.0002061]
[1646317995136,0.135,43817.0,43816.0,0.0002061]
[1646317995340,0.488429,43817.0,43816.0,0.0002061]
[1646317995542,0.488429,43817.0,43815.0,0.0011]
[1646317995741,0.488429,43816.0,43815.0,0.0011]
[1646317996199,0.70388092,43816.0,43815.0,0.0011]
[1646317997502,0.70688092,43816.0,43815.0,0.0011]
[1646317998504,0.84888092,43816.0,43815.0,0.0011]
[1646317998704,0.84588092,43816.0,43815.0,0.0011]
[1646317998902,0.84588092,43816.0,43814.0,0.0011]
[1646317998903,0.95,43815.0,43814.0,0.0011]
[1646317999102,1.46779041,43815.0,43814.0,0.0011]
[1646317999308,0.51779041,43815.0,43814.0,0.0011]
[1646317999504,0.52079041,43815.0,43814.0,0.0011]
[1646318000854,0.51779041,43815.0,43814.0,0.0011]
[1646318001649,0.57889941,43815.0,43814.0,0.0011]
[1646318002851,0.457429,43815.0,43814.0,0.0011]
[1646318003455,0.453429,43815.0,43814.0,0.0011]
[1646318003700,0.588429,43815.0,43814.0,0.0011]
[1646318005305,0.630429,43815.0,43814.0,0.0011]
[1646318005506,0.633429,43815.0,43814.0,0.0011]
[1646318005908,1.329429,43815.0,43814.0,0.0011]
[1646318006506,1.329429,43815.0,43811.0,0.0094]
[1646318006507,1.303429,43814.0,43811.0,0.0094]
[1646318006707,1.149429,43813.0,43812.0,0.00020446]
[1646318006906,1.341539,43813.0,43812.0,0.00020446]
[1646318007547,1.345539,43813.0,43811.0,0.0094]
[1646318007750,0.95,43811.0,43810.0,0.00020447]
[1646318007947,0.95,43811.0,43799.0,0.01141]
[1646318007948,0.95,43809.0,43804.0,0.004118]
[1646318008247,0.353429,43810.0,43799.0,0.01141]
[1646318008248,0.353429,43804.0,43799.0,0.01141]
[1646318009049,0.353429,43803.0,43799.0,0.01141]
[1646318009247,0.353429,43802.0,43801.0,0.005]
[1646318010249,0.696,43801.0,43799.0,0.01141]
[1646318010453,0.696,43801.0,43798.0,0.12850457]
[1646318010454,1.246196,43800.0,43798.0,0.12850457]
[1646318010750,0.530485,43799.0,43798.0,0.12850457]
[1646318010952,0.395485,43799.0,43798.0,0.12850457]
[1646318011503,0.402485,43799.0,43798.0,0.12850457]
[1646318012004,0.537485,43799.0,43798.0,0.12850457]
[1646318012400,0.00109543,43798.0,43796.0,0.0033]
[1646318012603,0.00109543,43798.0,43795.0,0.01262505]
[1646318012604,1.646,43796.0,43795.0,0.01262505]
[1646318012804,1.227,43796.0,43795.0,0.01262505]
[1646318013003,0.042,43796.0,43795.0,0.01262505]
[1646318013202,0.10054845,43796.0,43795.0,0.01262505]
[1646318015648,0.10054845,43796.0,43792.0,0.0011]
[1646318015649,1.303485,43795.0,43792.0,0.0011]
[1646318015852,0.65,43794.0,43787.0,0.00023473]
[1646318016049,0.65,43794.0,43783.0,0.0022]
[1646318016249,0.92867504,43793.0,43783.0,0.0022]
[1646318016453,0.996,43792.0,43783.0,0.0022]
[1646318016750,0.696,43792.0,43784.0,0.16157684]
[1646318016951,0.696,43792.0,43783.0,0.0022]
[1646318017148,0.3,43798.0,43783.0,0.0022]
[1646318017349,0.1,43797.0,43783.0,0.0022]
[1646318017552,0.00020311,43796.0,43785.0,0.00130316]
[1646318018051,0.28434027,43795.0,43785.0,0.00130316]
[1646318018450,0.28434027,43795.0,43785.0,0.0011]
[1646318018700,0.3,43794.0,43785.0,0.00130316]
[1646318019105,0.28434027,43795.0,43785.0,0.00130316]
[1646318019504,0.00020311,43796.0,43785.0,0.00130316]
[1646318019703,0.1633,43804.0,43791.0,0.353485]
[1646318019905,0.00020311,43796.0,43790.0,0.21896803]
[1646318020102,0.00020311,43796.0,43793.0,0.353485]
[1646318020502,0.00020311,43796.0,43790.0,0.21896803]
[1646318020902,0.696,43802.0,43786.0,0.0011]
[1646318021102,0.3,43803.0,43786.0,0.0011]
[1646318021103,0.296196,43799.0,43786.0,0.0011]
[1646318021304,0.27232646,43794.0,43786.0,0.0011]
[1646318022103,0.11141,43802.0,43787.0,0.21503203]
[1646318022304,0.00019204,43796.0,43787.0,0.21503203]
[1646318022559,0.00019204,43796.0,43786.0,0.0011]
[1646318023158,0.00019204,43796.0,43788.0,0.057118]
[1646318023360,0.1,43800.0,43788.0,0.057118]
[1646318023558,0.00019205,43796.0,43788.0,0.057118]
[1646318023765,0.00019205,43796.0,43789.0,0.353485]
[1646318023959,0.00019205,43796.0,43789.0,0.467707]
[1646318024562,0.2046497,43802.0,43789.0,0.467707]
[1646318024563,0.2046497,43802.0,43795.0,0.19159377]
[1646318024759,0.00019279,43796.0,43791.0,0.353485]
[1646318024960,0.00019279,43796.0,43789.0,0.114222]
[1646318025161,0.00019279,43796.0,43787.0,0.353485]
[1646318025361,0.057125,43795.0,43787.0,0.353485]
[1646318025561,0.27188571,43795.0,43787.0,0.353485]
[1646318025862,0.057125,43795.0,43789.0,0.353485]
[1646318026060,0.057125,43795.0,43786.0,0.0011]
[1646318026307,0.653485,43794.0,43786.0,0.0011]
[1646318026701,0.3,43794.0,43786.0,0.0011]
[1646318026904,0.042,43796.0,43786.0,0.0011]
[1646318027201,0.042,43796.0,43788.0,0.26417317]
[1646318027202,0.04219279,43796.0,43788.0,0.26417317]
[1646318027401,0.04219279,43796.0,43788.0,0.20705517]
[1646318027605,0.34219279,43796.0,43788.0,0.20705517]
[1646318028006,0.353485,43795.0,43788.0,0.20705517]
[1646318028207,0.34219279,43796.0,43788.0,0.20705517]
[1646318028208,0.3,43796.0,43788.0,0.20705517]
[1646318028404,0.30019274,43796.0,43789.0,0.05613335]
[1646318028804,0.30019274,43796.0,43791.0,0.16928221]
[1646318029004,0.30019274,43796.0,43789.0,0.05613335]
[1646318029408,0.3,43796.0,43789.0,0.05613335]
[1646318029606,0.28713795,43795.0,43788.0,0.20705517]
[1646318029807,0.353485,43794.0,43788.0,0.20705517]
[1646318030050,0.28713795,43795.0,43788.0,0.20705517]
[1646318030453,0.353485,43794.0,43786.0,0.0011]
[1646318030654,0.296196,43793.0,43786.0,0.0011]
[1646318030854,0.36431574,43796.0,43786.0,0.0011]
[1646318031066,0.135,43792.0,43786.0,0.0011]
[1646318031256,0.135,43788.0,43786.0,0.0011]
[1646318031457,0.135,43787.0,43786.0,0.0011]
[1646318031857,0.135,43787.0,43786.0,0.17789233]
[1646318032255,0.001,43792.0,43786.0,0.17789233]
[1646318032855,0.1,43795.0,43786.0,0.17789233]
[1646318033258,0.1,43795.0,43790.0,0.18493329]
[1646318033455,0.135,43791.0,43790.0,0.18493329]
[1646318033695,0.01849332,43789.0,43788.0,0.07338215]
[1646318034399,0.01849332,43789.0,43786.0,0.0011]
[1646318034601,0.01849332,43789.0,43787.0,0.21177061]
[1646318035396,0.01849332,43789.0,43786.0,0.26883694]
[1646318035597,0.01949332,43789.0,43786.0,0.26883694]
[1646318035798,0.01949332,43789.0,43786.0,0.19646792]
[1646318036997,0.01849332,43789.0,43786.0,0.19646792]
[1646318037212,0.01849332,43789.0,43787.0,0.353485]
[1646318037649,0.02149332,43789.0,43787.0,0.353485]
[1646318038051,0.02149332,43789.0,43786.0,0.19646792]
[1646318038650,0.02149332,43789.0,43787.0,0.353485]
[1646318038850,0.02149332,43789.0,43786.0,0.19646792]
[1646318039651,0.01849332,43789.0,43786.0,0.19646792]
[1646318040255,0.01849332,43789.0,43787.0,0.353485]
[1646318040652,0.01849332,43789.0,43786.0,0.19646792]
[1646318040852,0.01849332,43789.0,43787.0,0.353485]
[1646318041054,0.20993143,43788.0,43787.0,0.353485]
[1646318041306,0.01849332,43789.0,43788.0,0.2969146]
[1646318042209,0.30045668,43789.0,43788.0,0.2969146]
[1646318042411,0.01849332,43789.0,43788.0,0.2969146]
[1646318043007,0.01849332,43789.0,43788.0,0.2954146]
[1646318044613,0.01849332,43789.0,43788.0,1.12908011]
[1646318045650,0.01849332,43789.0,43788.0,0.9488996]
[1646318045855,0.01849332,43789.0,43788.0,0.6488996]
[1646318046650,0.01849332,43789.0,43788.0,0.83219181]
[1646318047053,0.01849332,43789.0,43788.0,1.13219181]
[1646318047253,0.01849332,43789.0,43788.0,1.15500181]
[1646318047458,0.01849332,43789.0,43788.0,1.13219181]
[1646318048453,0.01849332,43789.0,43788.0,0.83219181]
[1646318048696,0.01849332,43789.0,43788.0,0.82719181]
[1646318050898,0.01849332,43789.0,43788.0,0.6438996]
[1646318051899,0.30019254,43796.0,43789.0,0.95]
[1646318052101,0.3,43796.0,43789.0,1.55123352]
[1646318052560,0.30019254,43796.0,43790.0,0.02281]
[1646318052761,0.30019254,43796.0,43791.0,0.353485]
[1646318053365,0.3,43796.0,43791.0,0.353485]
[1646318053763,0.26646779,43792.0,43791.0,0.356485]
[1646318053965,0.40146779,43792.0,43791.0,0.003]
[1646318054363,0.68558232,43792.0,43791.0,0.003]
[1646318054561,0.68558232,43792.0,43788.0,0.2884146]
[1646318054761,0.135,43789.0,43788.0,0.2884146]
[1646318054963,0.135,43789.0,43788.0,0.6418996]
[1646318055162,0.135,43789.0,43788.0,0.2884146]
[1646318055568,0.135,43789.0,43788.0,0.2894146]
[1646318056890,0.135,43789.0,43788.0,0.2884146]
[1646318057291,0.135,43789.0,43788.0,0.353485]
[1646318057491,0.71994647,43789.0,43785.0,0.00019187]
[1646318057693,0.67708633,43789.0,43788.0,0.001]
[1646318057894,0.51208633,43789.0,43788.0,0.001]
[1646318058094,0.23681964,43789.0,43788.0,0.001]
[1646318058292,0.72192439,43789.0,43788.0,0.0009]
[1646318058492,0.72192389,43789.0,43788.0,0.0009]
[1646318058893,0.1807,43789.0,43781.0,0.00688957]
[1646318059093,0.2849171,43788.0,43782.0,0.353485]
[1646318059293,0.0457,43787.0,43782.0,0.353485]
[1646318059696,0.3306171,43787.0,43782.0,0.353485]
[1646318059940,0.3306171,43787.0,43782.0,0.348485]
[1646318059941,0.53373727,43787.0,43782.0,0.348485]
[1646318060143,0.53373727,43787.0,43781.0,0.00688957]
[1646318060144,1.3349171,43786.0,43781.0,0.00688957]
[1646318060345,0.6384851,43783.0,43781.0,0.00688957]
[1646318060547,0.0457,43782.0,43781.0,0.00688957]
[1646318060944,0.534268,43782.0,43781.0,0.00688957]
[1646318061345,0.534268,43782.0,43776.0,0.0011]
[1646318061346,0.95,43780.0,43776.0,0.0011]
[1646318061547,0.135,43777.0,43776.0,0.0011]
[1646318061746,0.1807,43777.0,43776.0,0.0011]
[1646318062044,0.1807,43777.0,43776.0,0.00130669]
[1646318062245,0.4807,43777.0,43776.0,0.00130669]
[1646318062644,0.1807,43777.0,43776.0,0.00130669]
[1646318062844,0.4807,43777.0,43776.0,0.00130669]
[1646318063145,0.4807,43777.0,43776.0,0.0011]
[1646318063544,1.1767,43777.0,43776.0,0.0011]
[1646318063786,0.4807,43777.0,43776.0,0.0011]
[1646318064890,0.1807,43777.0,43776.0,0.0011]
[1646318065491,0.534268,43777.0,43776.0,0.0011]
[1646318065691,0.8807,43777.0,43776.0,0.0011]
[1646318065894,0.1847,43777.0,43776.0,0.0011]
[1646318066091,0.838268,43777.0,43776.0,0.0011]
[1646318066492,0.4847,43777.0,43776.0,0.0011]
[1646318066991,0.4807,43777.0,43776.0,0.0011]
[1646318067197,0.4807,43777.0,43769.0,0.00237318]
[1646318067198,0.95,43774.0,43771.0,0.008747]
[1646318067446,0.95,43774.0,43769.0,0.00237318]
[1646318067447,0.95,43771.0,43770.0,0.0011]
[1646318067655,2.0532068,43771.0,43770.0,0.0011]
[1646318067847,1.3572068,43771.0,43770.0,0.0011]
[1646318068048,1.3572068,43771.0,43763.0,0.0011]
[1646318068049,0.353568,43768.0,43763.0,0.0011]
[1646318068253,0.95,43765.0,43750.0,0.18905662]
[1646318068451,0.4457,43767.0,43749.0,0.2786]
[1646318068452,0.05716946,43761.0,43749.0,0.2786]
[1646318068648,0.0457,43760.0,43749.0,0.353568]
[1646318068845,0.0457,43760.0,43747.0,0.00188374]
[1646318068846,0.0457,43760.0,43750.0,0.21283344]
[1646318069051,0.0457,43760.0,43750.0,0.20783344]
[1646318069052,0.3457,43760.0,43750.0,0.20783344]
[1646318069249,0.3,43759.0,43750.0,0.20783344]
[1646318069448,0.0457,43758.0,43756.0,0.18277834]
[1646318069849,0.057168,43755.0,43747.0,0.00188374]
[1646318070053,0.3457,43754.0,43747.0,0.00188374]
[1646318070249,0.135,43750.0,43747.0,0.00188374]
[1646318070449,0.0457,43751.0,43748.0,0.00627873]
[1646318070650,0.0457,43752.0,43748.0,0.06714541]
[1646318070852,0.0457,43752.0,43748.0,0.00627873]
[1646318071056,0.76030179,43749.0,43748.0,0.00627873]
[1646318071318,0.44272959,43747.0,43745.0,0.0022]
[1646318071509,0.834268,43746.0,43745.0,0.0022]
[1646318071709,1.530268,43746.0,43745.0,0.00198001]
[1646318072107,1.230268,43746.0,43745.0,0.00198001]
[1646318072310,0.534268,43746.0,43745.0,0.00198001]
[1646318072507,0.534268,43746.0,43741.0,0.00125805]
[1646318072508,0.057201,43744.0,43741.0,0.00125805]
[1646318072712,0.831,43742.0,43741.0,0.00125805]
[1646318072911,0.14637498,43742.0,43741.0,0.00125805]
[1646318073309,0.14637498,43742.0,43740.0,0.001]
[1646318073310,0.49994298,43742.0,43740.0,0.001]
[1646318073512,0.183023,43753.0,43742.0,0.353568]
[1646318073513,0.01142,43753.0,43742.0,0.353568]
[1646318073718,0.01142,43753.0,43741.0,0.05332632]
[1646318073719,0.003,43747.0,43744.0,0.353568]
[1646318073912,0.003,43747.0,43745.0,0.15567601]
[1646318074109,0.003,43747.0,43746.0,0.337119]
[1646318074312,0.003,43747.0,43746.0,0.49900602]
[1646318074510,0.003,43747.0,43745.0,0.15567601]
[1646318074971,0.3,43754.0,43745.0,0.15567601]
[1646318075165,0.057181,43750.0,43745.0,0.15567601]
[1646318075367,0.3,43759.0,43746.0,0.353568]
[1646318075570,0.02281,43763.0,43745.0,0.15567601]
[1646318075770,0.02281,43763.0,43747.0,0.353568]
[1646318075968,0.02281,43763.0,43745.0,0.25867601]
[1646318075969,0.32281,43763.0,43745.0,0.25867601]
[1646318076166,0.32281,43763.0,43750.0,0.06826346]
[1646318076167,0.057165,43762.0,43750.0,0.06826346]
[1646318076370,0.057165,43762.0,43754.0,0.21372969]
[1646318076573,0.4521788,43763.0,43754.0,0.21372969]
[1646318076771,0.4471788,43763.0,43754.0,0.21372969]
[1646318076971,0.1521788,43763.0,43754.0,0.21372969]
[1646318077167,0.2034464,43769.0,43754.0,0.21372969]
[1646318077367,0.05716,43767.0,43754.0,0.20872969]
[1646318077568,0.05716,43767.0,43756.0,0.0002045]
[1646318077769,0.353568,43766.0,43756.0,0.0002045]
[1646318077968,0.114333,43766.0,43756.0,0.0002045]
[1646318078166,0.267743,43757.0,43756.0,0.0002045]
[1646318078370,0.114333,43766.0,43756.0,0.0002045]
[1646318078371,1.110333,43766.0,43756.0,0.0002045]
[1646318078567,1.110333,43766.0,43749.0,0.003]
[1646318078568,0.0571692,43764.0,43749.0,0.003]
[1646318078814,0.0571692,43764.0,43754.0,0.0002045]
[1646318078815,0.353568,43759.0,43754.0,0.0002045]
[1646318079019,0.057176,43760.0,43754.0,0.0002045]
[1646318079414,0.653568,43759.0,43754.0,0.0002045]
[1646318079613,0.94321886,43759.0,43754.0,0.0002045]
[1646318079814,0.710752,43759.0,43740.0,0.07564813]
[1646318080014,0.710752,43759.0,43740.0,0.001]
[1646318080015,0.28594162,43749.0,43740.0,0.001]
[1646318080216,0.3,43753.0,43748.0,0.00081831]
[1646318080418,0.03432502,43749.0,43748.0,0.00081831]
[1646318080720,0.03432502,43749.0,43742.0,0.1583445]
[1646318080916,0.057182,43754.0,43743.0,0.18091263]
[1646318081316,0.2216057,43750.0,43742.0,0.1583445]
[1646318081716,0.057182,43754.0,43742.0,0.1583445]
[1646318082320,0.3,43757.0,43742.0,0.1583445]
[1646318082540,0.057172,43758.0,43742.0,0.1583445]
[1646318082741,0.057172,43758.0,43748.0,0.0709574]
[1646318083040,0.3,43751.0,43748.0,0.0709574]
[1646318083240,0.3,43751.0,43749.0,0.353568]
[1646318083442,0.3,43751.0,43746.0,0.18839569]
[1646318083638,0.3,43751.0,43747.0,0.353568]
[1646318084239,0.3,43751.0,43740.0,0.101]
[1646318084444,0.3,43751.0,43746.0,0.17057281]
[1646318085342,0.3,43751.0,43747.0,0.353568]
[1646318085539,0.3,43751.0,43746.0,0.17057281]
[1646318085739,0.302,43751.0,43746.0,0.17057281]
[1646318086194,0.302,43751.0,43746.0,0.17071472]
[1646318086796,0.302,43751.0,43747.0,0.353568]
[1646318086993,0.3,43751.0,43747.0,0.353568]
[1646318087593,0.3,43751.0,43746.0,0.17071472]
[1646318088194,0.3,43751.0,43747.0,0.353568]
[1646318088396,0.3,43751.0,43749.0,0.24546804]
[1646318088599,0.3,43751.0,43750.0,0.682754]
[1646318088798,0.3,43751.0,43750.0,0.382754]
[1646318090242,0.297564,43751.0,43750.0,0.382754]
[1646318091040,0.297564,43751.0,43750.0,0.405564]
[1646318091440,0.297564,43751.0,43750.0,0.382754]
[1646318092842,0.00020439,43760.0,43751.0,0.02281]
[1646318093045,0.23981,43771.0,43754.0,0.337016]
[1646318093242,0.2284,43771.0,43756.0,0.3535]
[1646318093442,0.00019887,43760.0,43757.0,0.0457]
[1646318093702,0.00019887,43760.0,43758.0,0.336977]
[1646318094002,0.00019887,43760.0,43759.0,0.62738013]
[1646318094306,0.057151,43775.0,43759.0,0.62738013]
[1646318094506,0.00019888,43761.0,43760.0,0.353568]
[1646318095003,0.00019888,43761.0,43760.0,0.676378]
[1646318095204,0.00019888,43761.0,43760.0,0.822078]
[1646318095404,0.05,43778.0,43760.0,0.822078]
[1646318095603,0.05,43778.0,43767.0,0.07441891]
[1646318095803,0.01141,43779.0,43768.0,0.5577366]
[1646318096002,0.01141,43779.0,43765.0,0.3]
[1646318096003,0.95,43779.0,43765.0,0.3]
[1646318096205,1.646,43777.0,43761.0,0.0457]
[1646318096403,1.646,43777.0,43749.0,0.2177]
[1646318096404,0.114334,43771.0,43749.0,0.2177]
[1646318096605,0.03627317,43759.0,43749.0,0.2177]
[1646318096805,0.03627317,43759.0,43752.0,0.28278392]
[1646318097008,0.03627317,43759.0,43753.0,0.19313531]
[1646318098675,0.03627317,43759.0,43754.0,0.353568]
[1646318099768,0.03627317,43759.0,43752.0,0.50051167]
[1646318099963,0.03627317,43759.0,43753.0,0.353568]
[1646318100367,0.03627317,43759.0,43745.0,0.1]
[1646318100565,0.03627317,43759.0,43746.0,0.00018895]
[1646318100566,0.353568,43757.0,43746.0,0.00018895]
[1646318100765,0.353568,43755.0,43746.0,0.00018895]
[1646318100962,0.353568,43753.0,43746.0,0.00018895]
[1646318101402,0.353568,43753.0,43744.0,0.01141]
[1646318101604,0.0457,43752.0,43746.0,0.00018894]
[1646318101804,0.353568,43751.0,43746.0,6.032e-05]
[1646318102002,0.353568,43750.0,43746.0,6.032e-05]
[1646318102504,0.102881,43752.0,43746.0,6.032e-05]
[1646318102505,0.653568,43751.0,43746.0,6.032e-05]
[1646318102705,0.653568,43751.0,43740.0,0.001]
[1646318102706,0.03432502,43747.0,43740.0,0.001]
[1646318102906,0.399268,43746.0,43740.0,0.001]
[1646318103105,0.0457,43745.0,43740.0,0.001]
[1646318103307,0.353568,43744.0,43740.0,0.001]
[1646318103507,0.0457,43744.0,43740.0,0.001]
[1646318103709,0.353568,43743.0,43740.0,0.001]
[1646318103907,0.0457,43744.0,43740.0,0.001]
[1646318104106,0.353568,43743.0,43740.0,0.00119413]
[1646318104509,0.0457,43744.0,43740.0,0.00119413]
[1646318104813,0.0457,43744.0,43741.0,0.2097685]
[1646318105042,0.0457,43744.0,43740.0,0.001]
[1646318105443,0.057192,43747.0,43740.0,0.00119413]
[1646318105842,0.002,43744.0,43740.0,0.00119413]
[1646318106045,0.20955971,43743.0,43740.0,0.00119413]
[1646318106245,0.002,43744.0,43740.0,0.001]
[1646318106661,0.002,43744.0,43741.0,0.353568]
[1646318106847,0.00019406,43756.0,43740.0,0.001]
[1646318106848,0.04589406,43756.0,43740.0,0.001]
[1646318107243,0.2170368,43749.0,43741.0,0.353568]
[1646318107745,0.2170368,43749.0,43740.0,0.001]
[1646318107746,0.353568,43748.0,43743.0,0.00018855]
[1646318108146,0.2170368,43749.0,43743.0,0.00018855]
[1646318108346,0.057181,43750.0,43743.0,0.00018855]
[1646318108790,0.21926187,43748.0,43740.0,0.001]
[1646318109094,0.21926187,43748.0,43744.0,0.0001752]
[1646318109095,0.353568,43746.0,43744.0,0.0001752]
[1646318109394,1.303568,43744.0,43728.0,0.47079876]
[1646318109590,0.057196,43742.0,43727.0,0.353568]
[1646318109992,0.057196,43742.0,43733.0,0.15867752]
[1646318110189,0.05719715,43741.0,43733.0,0.15867752]
[1646318110390,0.057196,43742.0,43733.0,0.15867752]
[1646318110589,0.21025322,43737.0,43728.0,0.114382]
[1646318110789,0.21025322,43737.0,43729.0,0.353568]
[1646318110993,0.057196,43742.0,43728.0,0.114382]
[1646318111193,0.3,43741.0,43728.0,0.114382]
[1646318111392,0.057196,43742.0,43731.0,0.00012698]
[1646318111393,0.102896,43742.0,43731.0,0.00012698]
[1646318111592,0.3,43741.0,43732.0,0.27653108]
[1646318112193,0.102896,43742.0,43733.0,0.353568]
[1646318112194,0.0457,43742.0,43733.0,0.353568]
[1646318112855,0.0457,43742.0,43732.0,0.27665806]
[1646318113048,0.0457,43742.0,43733.0,0.25728182]
[1646318113049,0.2720723,43738.0,43733.0,0.25728182]
[1646318113251,0.23242229,43746.0,43732.0,0.27665806]
[1646318113252,0.27812229,43746.0,43734.0,0.353568]
[1646318113449,0.27812229,43746.0,43732.0,0.27665806]
[1646318113450,0.05718883,43742.0,43732.0,0.27665806]
[1646318113651,0.05718883,43742.0,43732.0,0.27653108]
[1646318113852,0.05737894,43742.0,43733.0,0.003]
[1646318114251,0.11457294,43742.0,43733.0,0.003]
[1646318114454,0.3,43741.0,43733.0,0.003]
[1646318114953,0.00018997,43741.0,43733.0,0.003]
[1646318115157,0.00018997,43741.0,43732.0,0.27672109]
[1646318115354,0.00018997,43741.0,43737.0,0.25652694]
[1646318115553,0.00018997,43741.0,43734.0,0.057192]
[1646318116054,0.353568,43741.0,43734.0,0.057192]
[1646318116301,0.3,43742.0,43734.0,0.052192]
[1646318116501,0.696,43745.0,43734.0,0.052192]
[1646318116700,0.353568,43745.0,43734.0,0.052192]
[1646318116902,0.01142,43745.0,43734.0,0.052192]
[1646318117499,0.3,43746.0,43734.0,0.052192]
[1646318117702,0.002,43745.0,43734.0,0.052192]
[1646318117900,0.002,43745.0,43742.0,0.17734283]
[1646318118103,0.03432502,43743.0,43742.0,0.17734283]
[1646318118304,0.002,43745.0,43738.0,0.057186]
[1646318118702,0.00220333,43745.0,43738.0,0.057186]
[1646318119102,0.00020333,43745.0,43737.0,0.31772477]
[1646318119304,0.00020333,43745.0,43737.0,0.21583505]
[1646318119501,0.00020333,43745.0,43737.0,0.15864605]
[1646318119701,0.307146,43752.0,43738.0,0.353568]
[1646318119702,0.01142,43752.0,43738.0,0.353568]
[1646318119958,0.00020333,43743.0,43738.0,0.353568]
[1646318120157,0.00020333,43743.0,43739.0,0.20995464]
[1646318120373,0.00020333,43743.0,43740.0,0.337226]
[1646318120756,0.001,43750.0,43740.0,0.337226]
[1646318120956,0.3,43753.0,43738.0,0.11436]
[1646318121157,0.00020333,43744.0,43739.0,0.353568]
[1646318121657,0.00020333,43744.0,43739.0,0.54592001]
[1646318121858,0.00120333,43744.0,43738.0,0.11436]
[1646318122056,0.00120333,43744.0,43739.0,0.337216]
[1646318122260,0.001,43744.0,43739.0,0.353568]
[1646318122458,0.00120333,43744.0,43739.0,0.353568]
[1646318122858,0.16369328,43740.0,43738.0,0.10936]
[1646318123067,0.16369328,43740.0,43729.0,0.39981909]
[1646318123068,0.653568,43739.0,43730.0,0.057198]
[1646318123260,0.996,43742.0,43730.0,0.057198]
[1646318123459,0.35373176,43741.0,43732.0,0.00017272]
[1646318123700,0.00016376,43741.0,43732.0,0.00017272]
[1646318123901,0.00016376,43741.0,43732.0,0.26424496]
[1646318124109,0.03432502,43737.0,43732.0,0.00017272]
[1646318124300,0.03432502,43733.0,43732.0,0.00017272]
[1646318124503,0.03432502,43733.0,43730.0,0.27677221]
[1646318124702,0.3,43742.0,43732.0,0.00017272]
[1646318124902,0.03432502,43738.0,43732.0,0.00017272]
[1646318125102,0.03432502,43734.0,43732.0,0.00017272]
[1646318125304,0.03432502,43733.0,43732.0,0.00017272]
[1646318125502,0.03432502,43733.0,43732.0,0.35374072]
[1646318125707,0.03432502,43733.0,43730.0,0.057198]
[1646318126004,0.28220748,43739.0,43731.0,0.00017272]
[1646318126203,0.03432502,43735.0,43731.0,0.00017272]
[1646318126406,0.03432502,43732.0,43731.0,0.00017272]
[1646318126605,0.03432502,43732.0,43731.0,0.33753672]
[1646318126805,0.03432502,43732.0,43731.0,0.353568]
[1646318127205,0.03432502,43732.0,43731.0,0.353746]
[1646318127442,0.03432502,43732.0,43730.0,0.11959935]
[1646318127645,0.97720748,43739.0,43730.0,0.11959935]
[1646318127842,0.001,43737.0,43730.0,0.057198]
[1646318128042,0.5,43736.0,43723.0,0.20288643]
[1646318128246,0.001,43737.0,43728.0,0.28387824]
[1646318128447,0.001,43737.0,43732.0,0.00018912]
[1646318128643,0.03432502,43733.0,43732.0,0.00018912]
[1646318129044,0.33432502,43733.0,43732.0,0.00018912]
[1646318129245,0.03432502,43733.0,43732.0,0.00018912]
[1646318129845,0.03932502,43733.0,43732.0,0.00018912]
[1646318130247,0.03932502,43733.0,43726.0,0.057197]
[1646318130248,0.33932502,43733.0,43726.0,0.057197]
[1646318130448,0.3,43732.0,43726.0,0.057197]
[1646318130647,0.005,43733.0,43725.0,0.20740602]
[1646318131051,0.3,43736.0,43726.0,0.353746]
[1646318131296,0.2225,43741.0,43725.0,0.20740602]
[1646318131297,0.31142,43740.0,43725.0,0.20740602]
[1646318131697,0.22484076,43737.0,43732.0,0.23354925]
[1646318131898,0.22484076,43737.0,43727.0,0.18819538]
[1646318131899,0.03432502,43733.0,43727.0,0.18819538]
[1646318132096,0.22484076,43737.0,43736.0,0.10297505]
[1646318132299,0.25916578,43737.0,43736.0,0.10297505]